lending/lending_fUSD_20241212
["ID","MTS","AMOUNT","RATE_DAILY","PERIOD"]
[345078065,1733983849659,-588.48025585,0.00011099,2]
[345078066,1733983849669,-500.0,0.00011099,2]
[345078067,1733983849678,-500.0,0.00011099,2]
[345078068,1733983849687,-500.0,0.00011099,2]
[345078069,1733983849697,-500.0,0.00011099,2]
[345078070,1733983849710,-500.0,0.00011099,2]
[345078071,1733983849719,-500.0,0.00011099,2]
[345078072,1733983849728,-500.0,0.00011099,2]
[345078073,1733983849738,-500.0,0.00011099,2]
[345078074,1733983849748,-451.92366948,0.00011099,2]
[345078075,1733983849757,-500.0,0.00011099,2]
[345078076,1733983849766,-500.0,0.00011099,2]
[345078077,1733983849776,-500.0,0.00011099,2]
[345078078,1733983849786,-500.0,0.00011099,2]
[345078079,1733983849795,-500.0,0.00011099,2]
[345078080,1733983849805,-500.0,0.00011099,2]
[345078081,1733983849814,-500.0,0.00011099,2]
[345078082,1733983849824,-500.0,0.00011099,2]
[345078083,1733983849833,-500.0,0.00011099,2]
[345078084,1733983849842,-490.12,0.00011099,2]
[345078085,1733983849852,-500.0,0.00011099,2]
[345078086,1733983849862,-500.0,0.00011099,2]
[345078087,1733983849871,-500.0,0.00011099,2]
[345078088,1733983849890,-500.0,0.00011099,2]
[345078089,1733983849903,-484.5,0.00011099,2]
[345078090,1733983849912,-500.0,0.00011099,2]
[345078091,1733983849922,-500.0,0.00011099,2]
[345078092,1733983849932,-517.48836293,0.00011099,2]
[345078093,1733983849941,-500.0,0.00011099,2]
[345078094,1733983849955,-500.0,0.00011099,2]
[345078095,1733983849966,-500.0,0.00011099,2]
[345078096,1733983849977,-500.0,0.00011099,2]
[345078097,1733983849987,-500.0,0.00011099,2]
[345078098,1733983849997,-500.0,0.00011099,2]
[345078099,1733983850007,-500.0,0.00011099,2]
[345078100,1733983850017,-500.0,0.00011099,2]
[345078101,1733983850027,-500.0,0.00011099,2]
[345078102,1733983850038,-461.58,0.00011099,2]
[345078103,1733983850050,-500.0,0.00011099,2]
[345078104,1733983850060,-500.0,0.00011099,2]
[345078105,1733983850071,-500.0,0.00011099,2]
[345078106,1733983850081,-500.0,0.00011099,2]
[345078107,1733983850091,-500.0,0.00011099,2]
[345078108,1733983850100,-500.0,0.00011099,2]
[345078109,1733983850110,-500.0,0.00011099,2]
[345078110,1733983850120,-500.0,0.00011099,2]
[345078111,1733983850131,-500.0,0.00011099,2]
[345078112,1733983850141,-500.0,0.00011099,2]
[345078113,1733983850151,-500.0,0.00011099,2]
[345078114,1733983850161,-500.0,0.00011099,2]
[345078115,1733983850170,-238.3866962,0.00011099,2]
[345078116,1733983850180,-500.0,0.00011099,2]
[345078117,1733983850189,-500.0,0.00011099,2]
[345078118,1733983850203,-500.0,0.00011099,2]
[345078119,1733983850213,-500.0,0.00011099,2]
[345078120,1733983850222,-500.0,0.00011099,2]
[345078121,1733983850232,-500.0,0.00011099,2]
[345078122,1733983850242,-500.0,0.00011099,2]
[345078123,1733983850252,-500.0,0.00011099,2]
[345078124,1733983850261,-562.69839047,0.00011099,2]
[345078125,1733983850271,-500.0,0.00011099,2]
[345078126,1733983850281,-500.0,0.00011099,2]
[345078127,1733983850291,-500.0,0.00011099,2]
[345078128,1733983850300,-500.0,0.00011099,2]
[345078129,1733983850310,-500.0,0.00011099,2]
[345078130,1733983850319,-500.0,0.00011099,2]
[345078131,1733983850329,-500.0,0.00011099,2]
[345078132,1733983850339,-453.73892552,0.00011099,2]
[345078133,1733983850350,-500.0,0.00011099,2]
[345078134,1733983850359,-500.0,0.00011099,2]
[345078135,1733983850369,-500.0,0.00011099,2]
[345078136,1733983850378,-500.0,0.00011099,2]
[345078137,1733983850388,-500.0,0.00011099,2]
[345078138,1733983850397,-500.0,0.00011099,2]
[345078139,1733983850407,-500.0,0.00011099,2]
[345078140,1733983850417,-500.0,0.00011099,2]
[345078141,1733983850426,-500.0,0.00011099,2]
[345078142,1733983850436,-500.0,0.00011099,2]
[345078143,1733983850445,-500.0,0.00011099,2]
[345078144,1733983850458,-500.0,0.00011099,2]
[345078145,1733983850467,-500.0,0.00011099,2]
[345078146,1733983850477,-500.0,0.00011099,2]
[345078147,1733983850487,-500.0,0.00011099,2]
[345078148,1733983850496,-500.0,0.00011099,2]
[345078149,1733983850505,-500.0,0.00011099,2]
[345078150,1733983850515,-500.0,0.00011099,2]
[345078151,1733983850524,-500.0,0.00011099,2]
[345078152,1733983850534,-500.0,0.00011099,2]
[345078153,1733983850543,-155.9242099,0.00011099,2]
[345078154,1733983850553,-500.0,0.00011099,2]
[345078155,1733983850563,-500.0,0.00011099,2]
[345078156,1733983850572,-500.0,0.00011099,2]
[345078157,1733983850582,-500.0,0.00011099,2]
[345078158,1733983850592,-500.0,0.00011099,2]
[345078159,1733983850601,-192.84,0.00011099,2]
[345078160,1733983850610,-500.0,0.00011099,2]
[345078161,1733983850619,-500.0,0.00011099,2]
[345078162,1733983850629,-500.0,0.00011099,2]
[345078163,1733983850639,-568.63945434,0.00011099,2]
[345078164,1733983850648,-1020.75,0.00011099,2]
[345078165,1733983850658,-1020.75,0.00011099,2]
[345078166,1733983850667,-1020.75,0.00011099,2]
[345078167,1733983850677,-1020.75,0.00011099,2]
[345078168,1733983850687,-1020.75,0.00011099,2]
[345078169,1733983850696,-1020.75,0.00011099,2]
[345078170,1733983850708,-1020.75,0.00011099,2]
[345078171,1733983850717,-1020.75,0.00011099,2]
[345078172,1733983850726,-1020.75,0.00011099,2]
[345078173,1733983850736,-1020.75,0.00011099,2]
[345078174,1733983850744,-1020.75,0.00011099,2]
[345078175,1733983850754,-1020.75,0.00011099,2]
[345078176,1733983850763,-1020.75,0.00011099,2]
[345078177,1733983850772,-1020.75,0.00011099,2]
[345078178,1733983850782,-1020.75,0.00011099,2]
[345078179,1733983850792,-500.0,0.00011099,2]
[345078180,1733983850801,-1020.75,0.00011099,2]
[345078181,1733983850811,-500.0,0.00011099,2]
[345078182,1733983850820,-500.0,0.00011099,2]
[345078183,1733983850829,-1020.75,0.00011099,2]
[345078184,1733983850839,-500.0,0.00011099,2]
[345078185,1733983850848,-1020.75,0.00011099,2]
[345078186,1733983850857,-500.0,0.00011099,2]
[345078187,1733983850867,-500.0,0.00011099,2]
[345078188,1733983850876,-1020.75,0.00011099,2]
[345078189,1733983850885,-500.0,0.00011099,2]
[345078190,1733983850894,-500.0,0.00011099,2]
[345078191,1733983850903,-1020.75,0.00011099,2]
[345078192,1733983850912,-500.0,0.00011099,2]
[345078193,1733983850921,-500.0,0.00011099,2]
[345078194,1733983850931,-1020.75,0.00011099,2]
[345078195,1733983850940,-500.0,0.00011099,2]
[345078196,1733983850949,-500.0,0.00011099,2]
[345078197,1733983850962,-1020.83,0.00011099,2]
[345078198,1733983850974,-409.39,0.00011099,2]
[345078199,1733983850983,-608.74,0.00011099,2]
[345078200,1733983850993,-500.0,0.00011099,2]
[345078201,1733983851002,-507.46031093,0.00011099,2]
[345078202,1733983851013,-877.0,0.00011099,2]
[345078203,1733983851022,-877.0,0.00011099,2]
[345078204,1733983851032,-877.0,0.00011099,2]
[345078205,1733983851042,-877.0,0.00011099,2]
[345078206,1733983851051,-877.0,0.00011099,2]
[345078207,1733983851061,-877.0,0.00011099,2]
[345078208,1733983851070,-500.0,0.00011099,2]
[345078209,1733983851080,-877.0,0.00011099,2]
[345078210,1733983851089,-500.0,0.00011099,2]
[345078211,1733983851099,-877.0,0.00011099,2]
[345078212,1733983851108,-500.0,0.00011099,2]
[345078213,1733983851118,-877.0,0.00011099,2]
[345078214,1733983851127,-500.0,0.00011099,2]
[345078215,1733983851137,-877.0,0.00011099,2]
[345078216,1733983851147,-500.0,0.00011099,2]
[345078217,1733983851156,-877.0,0.00011099,2]
[345078218,1733983851166,-500.0,0.00011099,2]
[345078219,1733983851176,-877.0,0.00011099,2]
[345078220,1733983851185,-500.0,0.00011099,2]
[345078221,1733983851194,-500.0,0.00011099,2]
[345078222,1733983851207,-877.0,0.00011099,2]
[345078223,1733983851216,-877.0,0.00011099,2]
[345078224,1733983851226,-500.0,0.00011099,2]
[345078225,1733983851235,-500.0,0.00011099,2]
[345078226,1733983851244,-877.0,0.00011099,2]
[345078227,1733983851254,-877.0,0.00011099,2]
[345078228,1733983851263,-500.0,0.00011099,2]
[345078229,1733983851272,-877.0,0.00011099,2]
[345078230,1733983851282,-877.0,0.00011099,2]
[345078231,1733983851291,-500.0,0.00011099,2]
[345078232,1733983851300,-877.0,0.00011099,2]
[345078233,1733983851310,-877.0,0.00011099,2]
[345078234,1733983851319,-877.0,0.00011099,2]
[345078235,1733983851328,-500.0,0.00011099,2]
[345078236,1733983851337,-877.09122256,0.00011099,2]
[345078237,1733983851347,-500.0,0.00011099,2]
[345078238,1733983851356,-500.0,0.00011099,2]
[345078239,1733983851365,-500.0,0.00011099,2]
[345078240,1733983851374,-500.0,0.00011099,2]
[345078241,1733983851384,-500.0,0.00011099,2]
[345078242,1733983851394,-500.0,0.00011099,2]
[345078243,1733983851402,-500.0,0.00011099,2]
[345078244,1733983851411,-500.0,0.00011099,2]
[345078245,1733983851420,-315.15,0.00011099,2]
[345078246,1733983851429,-500.0,0.00011099,2]
[345078247,1733983851439,-251.68,0.00011099,2]
[345078248,1733983851448,-580.38357221,0.00011099,2]
[345078249,1733983851460,-500.0,0.00011099,2]
[345078250,1733983851534,-500.0,0.00011099,2]
[345078251,1733983851543,-500.0,0.00011099,2]
[345078252,1733983851552,-500.0,0.00011099,2]
[345078253,1733983851561,-494.25157216,0.00011099,2]
[345078254,1733983851570,-500.0,0.00011099,2]
[345078255,1733983851579,-502.40799989,0.00011099,2]
[345078256,1733983851588,-626.57,0.00011099,2]
[345078257,1733983851597,-626.57,0.00011099,2]
[345078258,1733983851606,-626.57,0.00011099,2]
[345078259,1733983851616,-626.57,0.00011099,2]
[345078260,1733983851625,-626.57,0.00011099,2]
[345078261,1733983851634,-500.0,0.00011099,2]
[345078262,1733983851643,-626.57,0.00011099,2]
[345078263,1733983851652,-500.0,0.00011099,2]
[345078264,1733983851661,-626.57,0.00011099,2]
[345078265,1733983851670,-626.57,0.00011099,2]
[345078266,1733983851679,-500.0,0.00011099,2]
[345078267,1733983851689,-626.57,0.00011099,2]
[345078268,1733983851698,-500.0,0.00011099,2]
[345078269,1733983851714,-500.0,0.00011099,2]
[345078270,1733983851723,-626.57,0.00011099,2]
[345078271,1733983851736,-500.0,0.00011099,2]
[345078272,1733983851745,-626.57,0.00011099,2]
[345078273,1733983851754,-626.57,0.00011099,2]
[345078274,1733983851763,-626.57,0.00011099,2]
[345078275,1733983851771,-626.57,0.00011099,2]
[345078276,1733983851781,-500.0,0.00011099,2]
[345078277,1733983851789,-626.57,0.00011099,2]
[345078278,1733983851798,-500.0,0.00011099,2]
[345078279,1733983851807,-626.57,0.00011099,2]
[345078280,1733983851816,-273.82,0.00011099,2]
[345078281,1733983851826,-626.57,0.00011099,2]
[345078282,1733983851835,-626.57,0.00011099,2]
[345078283,1733983851844,-626.57,0.00011099,2]
[345078284,1733983851854,-626.57,0.00011099,2]
[345078285,1733983851863,-626.57,0.00011099,2]
[345078286,1733983851873,-626.61847881,0.00011099,2]
[345078287,1733983851882,-500.0,0.00011099,2]
[345078288,1733983851891,-500.0,0.00011099,2]
[345078289,1733983851900,-500.0,0.00011099,2]
[345078290,1733983851910,-400.93702887,0.00011099,2]
[345078291,1733983851919,-500.0,0.00011099,2]
[345078292,1733983851928,-500.0,0.00011099,2]
[345078293,1733983851937,-326.50422657,0.00011099,2]
[345078294,1733983851946,-199.22847318,0.00011099,2]
[345078295,1733983851958,-500.0,0.00011099,2]
[345078296,1733983851972,-502.00706692,0.00011099,2]
[345078297,1733983851981,-500.0,0.00011099,2]
[345078298,1733983851991,-193.50565256,0.00011099,2]
[345078299,1733983852000,-500.0,0.00011099,2]
[345078300,1733983852010,-500.0,0.00011099,2]
[345078301,1733983852019,-201.59,0.00011099,2]
[345078302,1733983852028,-502.80452689,0.00011099,2]
[345078303,1733983852037,-507.53109812,0.00011099,2]
[345078304,1733983852047,-500.0,0.00011099,2]
[345078305,1733983852056,-178.73392128,0.00011099,2]
[345078306,1733983852066,-504.4189002,0.00011099,2]
[345078307,1733983852075,-7500.0,0.00011099,2]
[345078308,1733983852085,-500.0,0.00011099,2]
[345078309,1733983852094,-7500.0,0.00011099,2]
[345078310,1733983852103,-500.0,0.00011099,2]
[345078311,1733983852112,-500.0,0.00011099,2]
[345078312,1733983852121,-500.0,0.00011099,2]
[345078313,1733983852131,-500.0,0.00011099,2]
[345078314,1733983852140,-591.49902907,0.00011099,2]
[345078315,1733983852150,-503.18296287,0.00011099,2]
[345078316,1733983852159,-500.0,0.00011099,2]
[345078317,1733983852168,-500.0,0.00011099,2]
[345078318,1733983852177,-500.0,0.00011099,2]
[345078319,1733983852187,-500.0,0.00011099,2]
[345078320,1733983852196,-194.84481808,0.00011099,2]
[345078321,1733983852207,-500.0,0.00011099,2]
[345078322,1733983852216,-500.0,0.00011099,2]
[345078323,1733983852225,-500.0,0.00011099,2]
[345078324,1733983852234,-500.0,0.00011099,2]
[345078325,1733983852243,-500.0,0.00011099,2]
[345078326,1733983852253,-500.0,0.00011099,2]
[345078327,1733983852262,-500.0,0.00011099,2]
[345078328,1733983852271,-250000.0,0.000111,2]
[345078329,1733983852280,-622.0,0.000111,2]
[345078330,1733983852289,-26845.87796953,0.000111,2]
[345078331,1733983852298,-1050.60854941,0.000111,2]
[345078332,1733983852307,-500.0,0.000111,7]
[345078333,1733983852316,-6668083.35100921,0.000111,2]
[345078334,1733983852622,-500.0,0.00011099,2]
[345078335,1733983852633,-78185.3726075,0.000111,2]
[345078336,1733983852645,-13861.71703927,0.000111,2]
[345078337,1733983852796,-410.61275199,0.00011098,2]
[345078338,1733983852820,-89.38724801,0.00011098,2]
[345078339,1733983852831,-501.54678206,0.00011098,2]
[345078340,1733983852842,-418.86596993,0.00011099,2]
[345078341,1733983852853,-81.13403007,0.00011099,2]
[345078342,1733983852863,-452.96596993,0.00011099,2]
[345078343,1733983852886,-47.03403007,0.00011099,2]
[345078344,1733983852895,-500.0,0.00011099,2]
[345078345,1733983852904,-500.0,0.00011099,2]
[345078346,1733983852914,-500.0,0.00011099,2]
[345078347,1733983852923,-500.0,0.00011099,2]
[345078348,1733983852932,-500.0,0.00011099,2]
[345078349,1733983852942,-242.09644723,0.00011099,2]
[345078350,1733983852951,-128261.8336356,0.000111,2]
[345078351,1733983853115,-335.45835352,0.000111,2]
[345078352,1733983853142,-43482.09594515,0.000111,2]
[345078353,1733983853289,-334.81229792,0.000111,2]
[345078354,1733983853308,-278.21783,0.000111,2]
[345078355,1733983853326,-4668.94411484,0.000111,2]
[345078356,1733983853337,-3475.300001,0.000111,2]
[345078358,1733984494357,152.09,7.806e-05,2]
[345078359,1733984674429,571.82,8.219e-05,2]
[345078365,1733984849119,135592.98370533,1e-06,7]
[345078377,1733985003100,158.06589126,9.02e-05,10]
[345078383,1733985031638,-489.18,9.643e-05,2]
[345078384,1733985031648,-5230.56023716,9.71e-05,2]
[345078386,1733985031666,-732.71372382,9.71e-05,2]
[345078388,1733985031681,-84.62603902,9.71e-05,2]
[345078390,1733985031690,-483.47395598,9.715e-05,2]
[345078391,1733985031702,-48.06604402,9.715e-05,2]
[345078392,1733985031711,-250.0,9.782e-05,2]
[345078393,1733985031719,-153.81414179,9.815e-05,2]
[345078394,1733985031865,-846.18585821,9.815e-05,2]
[345078395,1733985031875,-250.0,9.852e-05,2]
[345078396,1733985031884,-156.72,9.863e-05,2]
[345078397,1733985031894,-300.0,9.963e-05,2]
[345078398,1733985031903,-5538.71,9.964e-05,2]
[345078399,1733985031912,-151.8,0.00010116,2]
[345078400,1733985031921,-304.28,0.00010137,2]
[345078401,1733985031931,-165.27,0.00010149,2]
[345078402,1733985031940,-1005.33,0.0001015,2]
[345078403,1733985031950,-1007.93,0.0001016,2]
[345078404,1733985031960,-325.77414179,0.00010175,2]
[345078405,1733985032180,-669.05585821,0.00010175,2]
[345078406,1733985032189,-994.21,0.000102,2]
[345078407,1733985032200,-336.73414179,0.00010228,2]
[345078408,1733985032215,-655.20585821,0.00010228,2]
[345078409,1733985032225,-156.72,0.00010228,2]
[345078410,1733985032235,-418.82,0.00010229,2]
[345078411,1733985032244,-982.65,0.00010256,2]
[345078412,1733985032253,-1016.93,0.00010302,2]
[345078413,1733985032262,-150.0,0.00010303,2]
[345078414,1733985032272,-307.77,0.00010303,2]
[345078415,1733985032281,-998.37,0.00010352,2]
[345078416,1733985032290,-152.87,0.00010378,2]
[345078417,1733985032300,-150.0,0.00010461,2]
[345078418,1733985032311,-571.82,0.00010461,2]
[345078419,1733985032322,-443.2,0.0001055,2]
[345078420,1733985032332,-156.72,0.00010593,2]
[345078421,1733985032344,-2500.0,0.00010601,2]
[345078422,1733985032353,-2500.0,0.00010601,2]
[345078423,1733985032362,-592.61544709,0.0001065,2]
[345078424,1733985032371,-489.18,0.00010849,2]
[345078425,1733985032380,-408.5,0.00010894,2]
[345078426,1733985032390,-358.40503092,0.00010934,2]
[345078427,1733985032399,-150.0,0.0001095,2]
[345078428,1733985032409,-156.72,0.00010958,2]
[345078429,1733985032419,-150.0,0.00010959,2]
[345078430,1733985032429,-5131.54046378,0.00010959,2]
[345078436,1733985037594,-2017.35953622,0.00010959,2]
[345078437,1733985037604,-2959.81239,0.0001099,2]
[345078438,1733985037614,-1000.0,0.00010997,2]
[345078439,1733985037624,-1982.26750854,0.00010998,2]
[345078440,1733985037925,-1957.87777193,0.00010998,2]
[345078441,1733985037937,-10858.24266021,0.00010998,2]
[345078442,1733985037956,-16246.95505932,0.00010998,2]
[345078443,1733985037966,-500.0,0.00010998,2]
[345078444,1733985037975,-1000.0,0.00010998,2]
[345078445,1733985037985,-2500.0,0.00010999,2]
[345078446,1733985037994,-3451.73568269,0.00011,2]
[345078448,1733985038004,-1000.0,0.00011,2]
[345078450,1733985038013,-1000.0,0.00011,2]
[345078451,1733985038022,-481.0,0.00011,3]
[345078453,1733985038032,-1000.0,0.00011,2]
[345078455,1733985038041,-1613.903,0.00011028,2]
[345078456,1733985038050,-183.642,0.00011028,2]
[345078457,1733985038060,-1000.0,0.00011042,2]
[345078458,1733985038069,-500.0,0.00011073,2]
[345078459,1733985038079,-1495.5849277,0.00011089,2]
[345078460,1733985038088,-702.35948015,0.00011089,2]
[345078461,1733985038098,-832.6760615,0.00011089,2]
[345078463,1733985038108,-500.0,0.00011089,2]
[345078464,1733985038117,-500.0,0.00011089,2]
[345078466,1733985038127,-500.0,0.00011089,2]
[345078468,1733985038137,-500.0,0.00011089,2]
[345078469,1733985038146,-500.0,0.00011089,2]
[345078470,1733985038156,-500.0,0.00011089,2]
[345078471,1733985038166,-500.0,0.00011089,2]
[345078472,1733985038175,-500.0,0.00011089,2]
[345078473,1733985038185,-500.0,0.00011089,2]
[345078474,1733985038202,-500.0,0.00011089,2]
[345078475,1733985038212,-500.0,0.00011089,2]
[345078476,1733985038221,-500.0,0.00011089,2]
[345078477,1733985038231,-500.0,0.00011089,2]
[345078478,1733985038241,-500.0,0.00011089,2]
[345078479,1733985038250,-210.73749803,0.00011089,2]
[345078480,1733985038260,-500.0,0.00011089,2]
[345078481,1733985038269,-500.0,0.00011089,2]
[345078482,1733985038278,-500.0,0.00011089,2]
[345078483,1733985038288,-500.0,0.00011089,2]
[345078484,1733985038297,-500.0,0.00011089,2]
[345078485,1733985038306,-500.0,0.00011089,2]
[345078486,1733985038315,-530.82,0.00011089,2]
[345078487,1733985038325,-500.0,0.00011089,2]
[345078488,1733985038335,-500.0,0.00011089,2]
[345078489,1733985038348,-278.21,0.00011089,2]
[345078490,1733985038358,-500.0,0.00011089,2]
[345078491,1733985038367,-500.0,0.00011089,2]
[345078492,1733985038377,-500.0,0.00011089,2]
[345078493,1733985038389,-500.0,0.00011089,2]
[345078494,1733985038398,-500.0,0.00011089,2]
[345078495,1733985038408,-500.0,0.00011089,2]
[345078496,1733985038419,-238.3866962,0.00011089,2]
[345078497,1733985038428,-500.0,0.00011089,2]
[345078498,1733985038439,-500.0,0.00011089,2]
[345078499,1733985038454,-500.0,0.00011089,2]
[345078500,1733985038464,-500.0,0.00011089,2]
[345078501,1733985038474,-500.0,0.00011089,2]
[345078502,1733985038483,-500.0,0.00011089,2]
[345078503,1733985038493,-500.0,0.00011089,2]
[345078504,1733985038503,-568.63945434,0.00011089,2]
[345078505,1733985038513,-500.0,0.00011089,2]
[345078506,1733985038522,-500.0,0.00011089,2]
[345078507,1733985038531,-500.0,0.00011089,2]
[345078508,1733985038542,-500.0,0.00011089,2]
[345078509,1733985038552,-500.0,0.00011089,2]
[345078510,1733985038562,-500.0,0.00011089,2]
[345078511,1733985038572,-500.0,0.00011089,2]
[345078512,1733985038581,-500.0,0.00011089,2]
[345078513,1733985038591,-409.39,0.00011089,2]
[345078514,1733985038600,-500.0,0.00011089,2]
[345078515,1733985038610,-507.46031093,0.00011089,2]
[345078516,1733985038619,-500.0,0.00011089,2]
[345078517,1733985038629,-500.0,0.00011089,2]
[345078518,1733985038639,-500.0,0.00011089,2]
[345078519,1733985038649,-500.0,0.00011089,2]
[345078520,1733985038659,-500.0,0.00011089,2]
[345078521,1733985038668,-503.57442226,0.00011089,2]
[345078522,1733985038678,-500.0,0.00011089,2]
[345078523,1733985038691,-500.0,0.00011089,2]
[345078524,1733985038707,-500.0,0.00011089,2]
[345078525,1733985038716,-500.0,0.00011089,2]
[345078526,1733985038726,-400.93702887,0.00011089,2]
[345078527,1733985038735,-500.0,0.00011089,2]
[345078528,1733985038745,-503.33483509,0.00011089,2]
[345078529,1733985038754,-500.0,0.00011089,2]
[345078530,1733985038764,-206.71307667,0.00011089,2]
[345078531,1733985038774,-500.0,0.00011089,2]
[345078532,1733985038783,-500.0,0.00011089,2]
[345078533,1733985038793,-7500.0,0.00011089,2]
[345078534,1733985038803,-500.0,0.00011089,2]
[345078535,1733985038812,-7500.0,0.00011089,2]
[345078536,1733985038821,-500.0,0.00011089,2]
[345078537,1733985038831,-521.65342929,0.00011089,2]
[345078538,1733985038840,-500.3083874,0.00011089,2]
[345078539,1733985038849,-59331.90589791,0.0001109,2]
[345078540,1733985038868,-21986.35994053,0.0001109,2]
[345078541,1733985038880,-10225.97554422,0.0001109,2]
[345078542,1733985038895,-2940145.21715106,0.0001109,2]
[345078543,1733985038904,-1323.0190732,0.00011092,2]
[345078544,1733985038913,-1150.4532187,0.00011092,2]
[345078545,1733985038923,-736.5989659,0.00011092,2]
[345078546,1733985038932,-640.5218703,0.00011092,2]
[345078547,1733985038947,-152.0,0.00011095,3]
[345078548,1733985038956,-300.121215,0.00011097,2]
[345078549,1733985038966,-300.121215,0.00011097,2]
[345078550,1733985038976,-300.121215,0.00011097,2]
[345078551,1733985038985,-300.121215,0.00011097,2]
[345078552,1733985038994,-300.121215,0.00011097,2]
[345078553,1733985039004,-300.121215,0.00011097,3]
[345078554,1733985039013,-300.121215,0.00011097,3]
[345078555,1733985039023,-300.121215,0.00011097,3]
[345078556,1733985039033,-300.121215,0.00011097,3]
[345078557,1733985039042,-300.121215,0.00011097,3]
[345078558,1733985039052,-300.121215,0.00011097,3]
[345078559,1733985039062,-300.121215,0.00011097,3]
[345078560,1733985039071,-300.121215,0.00011097,2]
[345078561,1733985039080,-300.121215,0.00011097,2]
[345078562,1733985039090,-300.121215,0.00011097,2]
[345078563,1733985039100,-300.121215,0.00011097,2]
[345078564,1733985039109,-300.121215,0.00011097,2]
[345078565,1733985039118,-300.121215,0.00011097,3]
[345078566,1733985039128,-300.121215,0.00011097,3]
[345078567,1733985039138,-350.121215,0.00011097,3]
[345078568,1733985039147,-1340.0736,0.00011097,2]
[345078569,1733985039157,-500.0,0.00011097,2]
[345078570,1733985039167,-500.0,0.00011097,2]
[345078571,1733985039176,-500.0,0.00011097,2]
[345078572,1733985039185,-500.0,0.00011097,2]
[345078573,1733985039198,-314.13762699,0.00011097,2]
[345078574,1733985039208,-534.20501604,0.00011097,2]
[345078575,1733985039217,-500.0,0.00011097,2]
[345078576,1733985039226,-547.2466926,0.00011097,2]
[345078577,1733985039236,-517.61314324,0.00011097,2]
[345078578,1733985039246,-500.0,0.00011097,2]
[345078579,1733985039256,-500.0,0.00011097,2]
[345078580,1733985039266,-534.23451324,0.00011097,2]
[345078581,1733985039276,-501.65115664,0.00011097,2]
[345078582,1733985039285,-533.83378727,0.00011097,2]
[345078583,1733985039295,-515.65633707,0.00011097,2]
[345078584,1733985039305,-521.66968293,0.00011097,2]
[345078585,1733985039315,-500.0,0.00011097,2]
[345078586,1733985039325,-500.0,0.00011097,2]
[345078587,1733985039335,-542.12671626,0.00011097,2]
[345078588,1733985039346,-567.07690546,0.00011097,2]
[345078589,1733985039356,-500.0,0.00011097,2]
[345078590,1733985039366,-500.0,0.00011097,2]
[345078591,1733985039375,-500.99691011,0.00011098,2]
[345078592,1733985039387,-502.56580916,0.00011098,2]
[345078593,1733985039396,-500.0,0.00011098,2]
[345078594,1733985039406,-527.48796924,0.00011098,2]
[345078595,1733985039415,-503.22445834,0.00011098,2]
[345078596,1733985039426,-500.22803248,0.00011098,2]
[345078597,1733985039436,-506.34167848,0.00011098,2]
[345078598,1733985039448,-500.0,0.00011098,2]
[345078599,1733985039458,-500.0,0.00011098,2]
[345078600,1733985039468,-501.69271611,0.00011098,2]
[345078601,1733985039478,-500.0,0.00011098,2]